Cogmind - Beta 16.1 @@@ ROGUE MODE // 2026.04.18 @ 13:41:55 Player: chebyrekser Result: Destroyed by T8-SXB(R) with Subdweller Machine Gun Performance ------------- Evolutions (0) 0 Regions Visited (2) 400 Robots Destroyed (23) 115 Value Destroyed (537) 537 Prototype IDs (0) 0 Alien Tech Used (0) 0 Bonus (0) 0 TOTAL SCORE: 1052 Bonus ------- None Cogmind --------- Core Integrity 0/250 Matter 290/300 Energy 75/100 System Corruption 0% Temperature Cool (0) Movement Treading (240) Ox1 Location -10/Subcaves Parts ------- > --- POWER (1) -------- (None) > --- PROPULSION (2) --- Light Treads > --- UTILITY (2) ------ Large Storage Unit > --- WEAPON (2) ------- Beam Cannon > --- INVENTORY (15) --- Light Treads Light Treads Wheel Wheel Seismic Detector Light Armor Plating Datajack Mining Laser Peak State ------------ > --- POWER ------------ Ion Engine > --- PROPULSION ------- Light Treads Wheel > --- UTILITY ---------- Large Storage Unit Seismic Detector > --- WEAPON ----------- Medium Laser Light Assault Rifle > --- INVENTORY -------- Ion Engine Light Treads Aluminum Leg Aluminum Leg Wheel Small Storage Unit Seismic Detector Core Shielding EM Pulse Gun Mining Laser [Rating: 8] Favorites ----------- Power Ion Engine Engine Ion Engine Propulsion Light Treads Treads Light Treads Wheel Wheel Utility Large Storage Unit Device Seismic Detector Storage Large Storage Unit Protection Light Armor Plating Weapon Light Assault Rifle Energy Gun Medium Laser Energy Cannon Beam Cannon Ballistic Gun Light Assault Rifle Special Weapon Mining Laser Build | -11 -10 -10 ------- Run | Yrd Mat Sub Slots Evolved . | . . . Power . | . . . Propulsion . | . . . Utility . | . . . Weapon . | . . . Parts Attached 23 | 7 11 5 Power 3 | 1 1 1 Engine 3 | 1 1 1 Core . | . . . Reactor . | . . . Propulsion 6 | 2 2 2 Treads 5 | 1 2 2 Leg . | . . . Wheel 1 | 1 . . Hover . | . . . Flight . | . . . Utility 8 | 2 5 1 Device 2 | 1 1 . Storage 2 | 1 1 . Processor . | . . . Hackware . | . . . Protection 4 | . 3 1 Artifact . | . . . Weapon 6 | 2 3 1 Energy Gun 1 | 1 . . Energy Cannon 3 | . 2 1 Ballistic Gun 1 | 1 . . Ballistic Cannon . | . . . Launcher . | . . . Special Weapon 1 | . 1 . Impact Weapon . | . . . Slashing Weapon . | . . . Piercing Weapon . | . . . Special Melee Weapon . | . . . Unidentified Prototypes . | . . . Parts Lost 12 | . 1 11 Power 2 | . . 2 Propulsion 4 | . 1 3 Utility 3 | . . 3 Weapon 3 | . . 3 Highest Loss Streak 11 | . 1 11 To Critical Strikes . | . . . Average Backups 12 | 5 13 12 Power . | . 1 . Propulsion 5 | 3 6 5 Utility 2 | . 2 3 Weapon 2 | 1 2 2 Tool/Special . | . . . Unused Backups 9 | . 4 5 Power . | . . . Propulsion 5 | . 2 3 Utility 1 | . . 1 Weapon 2 | . 2 . Tool/Special 1 | . . 1 Average Slot Usage (%) 99 | . 99 86 Engine 13 | . 14 9 Treads 23 | . 23 25 Wheel 4 | . 4 . Device 9 | . 10 3 Storage 14 | . 14 14 Protection 4 | . 3 7 Energy Gun 6 | . 6 . Energy Cannon 7 | . 6 23 Ballistic Gun 11 | . 12 2 Special Weapon 2 | . 2 . Peak Build Rating 8 | 7 8 8 Average Rating 7 | 5 7 6 On Entrance 5 | . 7 8 Avg Prop Armor Cover (%) 5 | 6 5 . Naked Turns . | . . . Heaviest Build 34 | 14 34 34 Greatest Support 40 | 20 40 40 Greatest Overweight (x) 1 | . 1 1 Average Overweight (x) . | . . . Largest Inventory Capacity 15 | 8 15 15 Average Capacity 14 | 7 14 15 Most Carried 15 | 8 15 15 Average Carried 13 | 5 13 12 Final Capacity 15 | 8 15 15 Final Carried 15 | 8 15 8 Class Distribution -------------------- 100% | Mutant Dominant Class ---------------- Mutant | -10/Materials Mutant | -10/Subcaves Resources | -11 -10 -10 ----------- Run | Yrd Mat Sub Matter Collected 634 | 277 322 35 Remotely . | . . . Salvage Created 780 | 124 521 135 Parts 48 | 8 35 5 Haulers Intercepted . | . . . Recyclers Shooed 2 | 2 . . Parts Field Recycled . | . . . Retrieved Matter . | . . . Parts Self-Destructed . | . . . Prevented . | . . . Parts Restored . | . . . Kills | -11 -10 -10 ------- Run | Yrd Mat Sub Combat Hostiles Destroyed 17 | . 14 3 Guns 13 | . 13 . Cannons 4 | . 1 3 Classes Destroyed 6 | 2 3 1 Tunneler 3 | 2 1 . Recycler 1 | 1 . . Watcher 2 | . 2 . Swarmer 6 | . 6 . Grunt 8 | . 8 . Subdweller 3 | . . 3 Best Kill Streak 3 | 2 3 2 Combat Bots Only 3 | . 3 2 Max Kills in Single Turn 2 | 1 2 1 Gunslinging 1 | . 1 . Exploded . | . . . Melee . | . . . Uniques/NPCs Destroyed . | . . . Combat | -11 -10 -10 -------- Run | Yrd Mat Sub Hostile Shots Fired 158 | . 72 86 Missed 32 | . 14 18 Hits 126 | . 58 68 Projectile 126 | . 58 68 Critical Strikes 2 | . . 2 Damage Taken 2007 | . 606 1401 Core 259 | . 69 190 Absorbed by Shields . | . . . Redirected to Shielding 13 | . 13 . Core Remaining (%) 100 | 100 . . Volleys Fired 90 | 7 62 21 Largest 2 | 2 2 2 Hottest 120 | 70 120 120 Shots Fired 174 | 14 121 39 Gun 124 | 14 105 5 Cannon 49 | . 15 34 Launcher . | . . . Special 1 | . 1 . Kinetic 69 | 7 57 5 Thermal 105 | 7 64 34 Explosive . | . . . Electromagnetic . | . . . Robot Hit Streak 28 | 2 13 28 Robot Miss Streak 3 | 2 3 1 Penetration Max . | . . . Secondary Targets 2 | . 2 . Max Gunslinging Chain 1 | . 1 . Shots Hit Robots 115 | 7 72 36 Core Hits 38 | 4 27 7 Critical Kills 1 | . 1 . Critical Parts Destroyed 1 | . 1 . Critical Strikes 6 | 1 5 . Burn 4 | 1 3 . Destroy 2 | . 2 . Melee Attacks . | . . . Impact . | . . . Slashing . | . . . Piercing . | . . . Sneak Attacks . | . . . Combat Hostiles . | . . . Follow-up Attacks . | . . . Damage Inflicted 1482 | 78 818 586 Guns 848 | 78 727 43 Cannons 634 | . 91 543 Explosions . | . . . Melee . | . . . Ramming . | . . . Kinetic 374 | 29 302 43 Thermal 1108 | 49 516 543 Explosive . | . . . Electromagnetic . | . . . Impact . | . . . Slashing . | . . . Piercing . | . . . Highest Corruption . | . . . Average Corruption . | . . . Corruption Purged . | . . . Corruption Blocked . | . . . Overload Shots . | . . . Overflow Damage . | . . . Projectiles . | . . . Explosions . | . . . Melee . | . . . Knockbacks . | . . . Impact . | . . . Kinetic . | . . . Secondary . | . . . Self-Inflicted Damage . | . . . Shots . | . . . Rammed . | . . . Targets Rammed . | . . . Kicked . | . . . Crushed . | . . . Highest Temperature 258 | 40 258 52 Average Temperature 67 | 19 82 20 Received Heat Transfer 423 | . 231 192 Effects 3 | . 3 . Energy Bleed 1 | . 1 . Interference 2 | . 2 . Siege Activations . | . . . Martial Activations . | . . . Shielding Activations . | . . . Robots Disrupted . | . . . Combat Hostiles . | . . . Robots Corrupted . | . . . Combat Hostiles . | . . . Parts Fried . | . . . Impact Corruptions . | . . . Robots Melted . | . . . Combat Hostiles . | . . . Parts Melted 7 | . 4 3 Heat Transferred 2997 | 222 1628 1147 Parts Sabotaged . | . . . Parts Stolen . | . . . Parts Stripped . | . . . Power Chain Reactions . | . . . Alert | -11 -10 -10 ------- Run | Yrd Mat Sub Maximum Alert Level . | . . . Low Security (%) 100 | 100 100 . Level 1 . | . . . Level 2 . | . . . Level 3 . | . . . Level 4 . | . . . Level 5 . | . . . High Security . | . . . Max Security . | . . . Peak Influence 187 | 10 187 . Initial . | . . . Average 77 | . 83 . Influence Increases 443 | 15 428 . Destroy 0b10 Robot/C 280 | . 280 . Destroy 0b10 Robot/NC 30 | 15 15 . Destroy Leader 74 | . 74 . Successful Hack 28 | . 28 . Destroy Structure 1 | . 1 . Lose Combat Pursuer 30 | . 30 . Influence Decreases 443 | 15 337 91 Entered New Map 44 | . . 44 Time Decay 362 | 15 327 20 Lost Part 37 | . 10 27 Squads Dispatched 3 | . 3 . Investigation 2 | . 2 . Extermination . | . . . Reinforcement 1 | . 1 . Assault . | . . . Garrison . | . . . Intercept . | . . . Searches Triggered . | . . . Construction Impeded . | . . . Haulers Reinforced . | . . . Active Scanning Responses . | . . . Cargo Convoy Interrupts . | . . . Stealth | -11 -10 -10 --------- Run | Yrd Mat Sub Distress Signals 4 | . 4 . Communications Jammed . | . . . Distress Signals . | . . . Times Spotted 28 | . 24 4 Peak Tracking Total 4 | . 4 4 Tactical Retreats 2 | . 2 . Traps | -11 -10 -10 ------- Run | Yrd Mat Sub Traps Triggered 2 | . 2 . Indirectly . | . . . Trap Hack Attempts . | . . . Triggered . | . . . Disarmed . | . . . Reprogrammed . | . . . Reused . | . . . Traps Extracted . | . . . Installed . | . . . Triggered . | . . . Machines | -11 -10 -10 ---------- Run | Yrd Mat Sub Machines Disabled . | . . . Max in Single Turn . | . . . Machines Repaired . | . . . Machines Dismantled . | . . . Machines Sabotaged . | . . . Overloaded Fab Kills . | . . . Hacking | -11 -10 -10 --------- Run | Yrd Mat Sub Machines Accessed 6 | . 6 . Terminals 5 | . 5 . Fabricators . | . . . Repair Stations . | . . . Recycling Units 1 | . 1 . Scanalyzers . | . . . Garrison Access . | . . . Total Hacks 22 | . 22 . Successful 12 | . 12 . Failed 9 | . 9 . Catastrophic 3 | . 3 . Database Lockouts 1 | . 1 . Manual 20 | . 20 . Terminals 21 | . 21 . Fabricators . | . . . Repair Stations . | . . . Recycling Units 1 | . 1 . Scanalyzers . | . . . Garrison Access . | . . . Terminal Hacks 3 | . 3 . Robot Analysis 3 | . 3 . Fabricator Hacks . | . . . Repair Station Hacks . | . . . Recycling Unit Hacks . | . . . Scanalyzer . | . . . Garrison Access Hacks . | . . . Unauthorized Hacks 9 | . 9 . Terminals 9 | . 9 . Assimilate 1 | . 1 . Botnet 1 | . 1 . Disrupt 1 | . 1 . Operators 1 | . 1 . Skim 5 | . 5 . Fabricators . | . . . Repair Stations . | . . . Recycling Units . | . . . Scanalyzers . | . . . Garrison Access . | . . . Data Cores Recovered . | . . . Used . | . . . Hacking Detections 6 | . 6 . Full Trace Events . | . . . Feedback Events . | . . . Feedback Blocked . | . . . Robot Schematics Acquired . | . . . Robots Built . | . . . Authchips . | . . . Time . | . . . Total Robot Build Rating . | . . . Part Schematics Acquired . | . . . Parts Built . | . . . Authchips . | . . . Time . | . . . Total Part Build Rating . | . . . Part Studies Acquired . | . . . Parts Repaired . | . . . Time . | . . . Parts Recycled . | . . . Recycled Matter . | . . . Retrieved Matter . | . . . Retrieved Components . | . . . Parts Scanalyzed . | . . . Part Schematics Acquired . | . . . Parts Damaged . | . . . Bothacking | -11 -10 -10 ------------ Run | Yrd Mat Sub Used RIF Installer . | . . . Robots Hacked . | . . . Non-combat . | . . . Combat . | . . . Robot Hacks Applied . | . . . Relay Couplers Released . | . . . Fabnet Peak Effective % . | . . . Robots Rewired . | . . . Allies Hacked . | . . . Hacks Repelled . | . . . Allies | -11 -10 -10 -------- Run | Yrd Mat Sub Total Allies . | . . . Largest Group . | . . . Highest-Rated Group . | . . . Highest-Rated Ally . | . . . Total Orders . | . . . Ally Attacks . | . . . Total Damage . | . . . Kills . | . . . Allies Corrupted . | . . . Allies Melted . | . . . Intel | -11 -10 -10 ------- Run | Yrd Mat Sub Active Infowar (turns) 1389 | 62 1306 21 Seismic 1389 | 62 1306 21 Robot Analysis Total 3 | . 3 . Derelict Logs Recovered . | . . . Drone Launches . | . . . Drone Recoveries . | . . . Exploration | -11 -10 -10 ------------- Run | Yrd Mat Sub Turns Passed 2052 | 150 1794 108 Spaces Moved 813 | 72 732 9 Core 1 | 1 . . Treads 810 | 69 732 9 Legs . | . . . Wheels 2 | 2 . . Hover . | . . . Flight . | . . . Fastest Speed 50 | 50 160 160 Average Speed 177 | 156 179 168 Slowest Speed 240 | 160 240 240 Overloaded Moves . | . . . Propulsion Burnouts . | . . . Robots Hopped . | . . . Potential Cave-ins . | . . . Cave-ins Triggered . | . . . Exploration Rate (%) 28 | 4 78 2 Regions Visited 2 Branch Regions 1 Pre-discovered Areas . | . . . Known Exits Taken 1 | . 1 . Unknown Exits Taken 1 | 1 . . Scrap Searched . | . . . Spaces Dug 1 | . 1 . Terrain Destroyed 1 | . 1 . Melee . | . . . Projectile 1 | . 1 . AOE . | . . . Terrain Rammed . | . . . Walls Destroyed . | . . . Machines Disabled . | . . . Actions | -11 -10 -10 --------- Run | Yrd Mat Sub Total 1251 | 95 1092 64 Wait 274 | . 248 26 Move 811 | 71 731 9 Hop . | . . . Pick Up 24 | 10 14 . Fast Attach 6 | 5 1 . Attach 10 | 2 1 7 Detach . | . . . Swap 26 | . 25 1 Drop 10 | . 10 . Fire 90 | 7 62 21 Melee . | . . . Ram . | . . . Kick . | . . . Crush . | . . . Escape Stasis . | . . . Rewire . | . . . Trap . | . . . Miscellaneous . | . . . Route ------- -11/Scrapyard -10/Materials (discovered 5 exits: [*Mat x2] / [*Min x2] / *Sub) -10/Subcaves History --------- Turn | Location | Event 12 | -11/Scrapyard | Discovered new exit (range 15) 151 | -11/Scrapyard | Entered Materials 317 | -10/Materials | Build established: Mutant 463 | -10/Materials | Discovered new exit (range 14) 860 | -10/Materials | Discovered new exit (range 12) 1248 | -10/Materials | Discovered new exit (range 14) 1266 | -10/Materials | Discovered new exit (range 10) 1806 | -10/Materials | Central database locked down 1883 | -10/Materials | Identified exit to Subcaves 1945 | -10/Materials | Entered Subcaves 1946 | -10/Subcaves | Approached by a straggling Scientist 2005 | -10/Subcaves | Core integrity fell below 50% 2048 | -10/Subcaves | Core integrity fell below 20% 2053 | -10/Subcaves | Destroyed by T8-SXB(R) with Subdweller Machine Gun Last Messages --------------- 02008_ Subatomizers dissect the Sub. Power Source. 02011_ Acquired 1 matter. 02018_ Lgt. Armor Plating destroyed. 02018_ Lgt. Treads destroyed. 02019_ Subatomizers dissect the Disposable Heat Sink. 02020_ Acquired 10 matter. 02020_ Lgt. Assault Rifle destroyed. 02030_ Subatomizers dissect the Disposable Heat Sink. 02038_ Lgt. Armor Plating destroyed. 02044_ Lgt. Treads destroyed. 02045_ Sub. Optics melted. 02045_ Sub. Monowheel melted. 02045_ Q1-2K0(R) destroyed. 02048_ Beam Cannon destroyed. 02050_ Ion Engine destroyed. 02050_ Sub. Monowheel melted. 02050_ VZ-PMZ(R) destroyed. Map ----- +----------------------------------------------------+ | ?????????????????????????????????????????????????? | | ?????????????????????????????????????????????????? | | ?????????????????????????????????????????????????? | | ?????????????????????????????????????????????????? | | ?????????????????????????????????????????????????? | | ?????????????????????????????????????????????????? | | ?????????????????????????????????????????????????? | | ?????????????????????????????????????????????????? | | ?????????????????????????????????????????????????? | | ?????????????????????????????????????????????????? | | ????????????????????####?????????????????????????? | | ???????????????????## ##???????????????????????? | | ??????????????????## ???????????????????????? | | ?????????????????## ???????????????????????? | | ?????????????????# ???????????????????????? | | ?????????????????# ???????????????????????? | | ?????????????????# ???????????????????????? | | ?????????????????# ???????????????????????? | | ?????????????????# # ???????????????????????? | | ?????????????????? ##??????????????????????? | | ???????????????????? #??????????????????????? | | ?????????????????????# #??????????????????????? | | ?????????????????##### %##?????????????????????? | | ?????????????????# &[]###???????????????????? | | ?????????????????# # !%* ##??????????????????? | | ?????????????????????## @# #??????????????????? | | ??????????????????????# R## ##??????????????????? | | ?????????????????????# ## #???????????????????? | | ?????????????????????## ???????????????????? | | ??????????????????????# ##??????????????????? | | ?????????????????????? #???????????????????? | | ????????????????????? ???????????????????? | | ????????????????????? ""???????????????????? | | ???????????????????? #### " ???????????????????? | | ??????????????????? ????# " ??????????????????? | | ??????????????????? ?????#% "##??????????????????? | | ?????????????????? ????? "#?????????????????????? | | ??????????????????#?????? ??????????????????????? | | ????????????????????????? ??????????????????????? | | ????????????????????????? ???????????????????????? | | ?????????????????????????????????????????????????? | | ?????????????????????????????????????????????????? | | ?????????????????????????????????????????????????? | | ?????????????????????????????????????????????????? | | ?????????????????????????????????????????????????? | | ?????????????????????????????????????????????????? | | ?????????????????????????????????????????????????? | | ?????????????????????????????????????????????????? | | ?????????????????????????????????????????????????? | | ?????????????????????????????????????????????????? | +----------------------------------------------------+ Best States ------------- Heat Dissipation 25 Energy Generation 10 Energy Capacity 250 Matter Stores 300 Matter Capacity 300 Sight Range 16 Terrain Scan Density 10 Armor Coverage 150 Core Shielding 20 Evasion (%) 40 Recoil Reduction 2 Item Schematics ----------------- None Robot Schematics ------------------ None Fabricated ------------ Nothing Repaired ---------- Nothing Studied --------- None Alien Tech Used ----------------- None Achievements -------------- None Challenges ------------ None Game ------ Seed CombatPrecisionGriptreads Manual? 0 Play Time 00:12:48 Cumulative 427.9 hours Start 2026.04.18 @ 13:24:41 End 2026.04.18 @ 13:41:55 Sessions 1 Manual Loads 0 Difficulty Rogue Special Mode None Game No. 117 Rogue 111 Adventurer 0 Explorer 6 Win Type - Total 29 Types 15/1/6/1/1/0/2/1/1/1 Lore% 90 Gallery% 78 Achievement% 76 Wizard Run 0 Options --------- Layout 1 ASCII 0 Keyboard 0 Movement Mouse Keybinds 0 Fullscreen 2 Font 24/Smallcaps Map View 50x35 Zoom Use 0% Tactical HUD 1 Map Filters NONE Filters NONE Steam 1 RUN: 7b81dbed-2f1c-470a-a615-7e36504fd941